Cogmind - Beta 16 @@@ ROGUE MODE // 2025.11.30 @ 19:43:18 Player: Scringis Result: Destroyed by Y-54 Guardian with Gatling Laser Performance ------------- Evolutions (3) 1500 Regions Visited (7) 1400 Robots Destroyed (98) 490 Value Destroyed (2894) 2894 Prototype IDs (10) 200 Alien Tech Used (0) 0 Bonus (254) 254 TOTAL SCORE: 6738 Bonus ------- Follower Combat Kills 254 Cogmind --------- Core Integrity 0/700 Matter 48/300 Energy 89/100 System Corruption 0% Temperature Cool (13) Movement Treading (160) Location -7/Storage Parts ------- > --- POWER (2) -------- (None) > --- PROPULSION (4) --- Light Treads > --- UTILITY (4) ------ Improved Heat Sink Gravity Neutralizer Advanced Targeting Computer > --- WEAPON (3) ------- Advanced Assault Cannon > --- INVENTORY (5) ---- (None) Peak State ------------ > --- POWER ------------ Light Nuclear Core > --- PROPULSION ------- Carbon-fiber Leg Carbon-fiber Leg Carbon-fiber Leg > --- UTILITY ---------- Large Storage Unit Advanced Targeting Computer Improved Shield Generator Hacking Suite > --- WEAPON ----------- Autogun Minigun Gauss Rifle > --- INVENTORY -------- Improved Heat Sink Advanced Targeting Computer Launcher Guidance Computer Launcher Guidance Computer Recoil Stabilizer Minigun Advanced Assault Cannon Proton Missile Launcher Proton Missile Launcher Mining Laser Plasma Cutter [Rating: 35] Favorites ----------- Power Light Deuterium Engine Engine Light Deuterium Engine Power Core Light Nuclear Core Propulsion Light Treads Treads Light Treads Leg Aluminum Leg Flight Unit Improved VTOL Module Utility Hacking Suite Device Experimental Sensor Array Storage Large Storage Unit Processor Advanced Targeting Computer Hackware Hacking Suite Weapon Autogun Energy Gun EM Pulse Gun Ballistic Gun Autogun Ballistic Cannon Advanced Assault Cannon Launcher Grenade Launcher Special Weapon Plasma Cutter Build | -11 -10 -10 -9 -9 -8 -7 -7 ------- Run | Yrd Mat Min Mat Min Mat Fac Sto Slots Evolved 6 | . . . 2 . 2 2 . Power 1 | . . . . . 1 . . Propulsion 2 | . . . . . 1 1 . Utility 2 | . . . 1 . . 1 . Weapon 1 | . . . 1 . . . . Parts Attached 66 | 6 6 . 9 3 25 11 6 Power 9 | 1 1 . 1 1 4 1 . Engine 6 | 1 1 . 1 1 2 . . Core 3 | . . . . . 2 1 . Reactor . | . . . . . . . . Propulsion 17 | 2 . . . 1 11 2 1 Treads 5 | 2 . . . 1 1 . 1 Leg 11 | . . . . . 9 2 . Wheel . | . . . . . . . . Hover . | . . . . . . . . Flight 1 | . . . . . 1 . . Utility 14 | 1 2 . 2 1 . 5 3 Device 5 | . . . 1 . . 2 2 Storage 4 | 1 1 . 1 . . 1 . Processor 3 | . . . . 1 . 1 1 Hackware 2 | . 1 . . . . 1 . Protection . | . . . . . . . . Artifact . | . . . . . . . . Weapon 26 | 2 3 . 6 . 10 3 2 Energy Gun 5 | 1 . . 1 . 2 1 . Energy Cannon . | . . . . . . . . Ballistic Gun 15 | 1 3 . 5 . 6 . . Ballistic Cannon 1 | . . . . . . . 1 Launcher 4 | . . . . . 2 2 . Special Weapon 1 | . . . . . . . 1 Impact Weapon . | . . . . . . . . Slashing Weapon . | . . . . . . . . Piercing Weapon . | . . . . . . . . Special Melee Weapon . | . . . . . . . . Unidentified Prototypes 8 | . . . 2 . 4 1 1 Parts Lost 33 | . . . . 3 13 15 2 Power 5 | . . . . 1 3 1 . Propulsion 9 | . . . . 1 4 4 . Utility 4 | . . . . 1 . 2 1 Weapon 15 | . . . . . 6 8 1 Highest Loss Streak 11 | . . . . 2 7 11 2 To Critical Strikes . | . . . . . . . . Average Backups 10 | 2 4 7 13 13 11 10 2 Power . | . 1 1 1 . . . . Propulsion . | . . 1 1 . . . . Utility 3 | . . 1 4 4 4 4 1 Weapon 4 | . 2 4 6 6 5 5 . Tool/Special . | . . . . . . . . Unused Backups 7 | . . . 1 . 1 5 . Power . | . . . . . . . . Propulsion . | . . . . . . . . Utility 4 | . . . 1 . 1 2 . Weapon 3 | . . . . . . 3 . Tool/Special . | . . . . . . . . Average Slot Usage (%) 89 | . 92 100 98 99 82 76 16 Engine 9 | . 13 14 11 10 8 3 . Treads 15 | . 27 28 22 21 3 . . Leg 7 | . . . . . 17 22 . Device 2 | . . . 10 4 . 2 4 Storage 10 | . 14 14 11 11 9 6 . Processor 4 | . . . . 6 9 7 5 Hackware 9 | . 7 14 11 11 9 6 . Energy Gun 2 | . 11 . . . 2 1 . Ballistic Gun 24 | . 16 28 31 33 22 20 . Peak Build Rating 35 | 6 11 12 30 27 31 35 18 Average Rating 21 | 4 7 11 26 22 25 30 8 On Entrance 13 | . 6 11 12 27 21 27 1 Avg Prop Armor Cover (%) . | . . . . . . . . Naked Turns 30 | . . . . . . 17 13 Heaviest Build 39 | 14 21 21 35 35 39 39 7 Greatest Support 60 | 40 40 40 40 40 60 55 20 Greatest Overweight (x) 11 | . . . . 1 11 1 1 Average Overweight (x) . | . . . . . . . . Largest Inventory Capacity 15 | 8 10 10 15 15 15 15 5 Average Capacity 13 | 7 8 10 14 15 15 14 5 Most Carried 15 | 5 8 8 15 15 14 14 5 Average Carried 10 | 2 4 7 13 13 11 10 2 Final Capacity 15 | 8 10 10 15 15 15 5 5 Final Carried 14 | 2 7 8 14 13 11 5 . Class Distribution -------------------- 32% | Mutant 26% | Scavenger-Gunner 20% | Skirmisher 15% | Gunner 4% | Scavenger-Mutant Dominant Class ---------------- Mutant | -10/Materials Mutant | -10/Mines Skirmisher | -9/Materials Gunner | -9/Mines Scavenger-Gunner | -8/Materials Scavenger-Gunner | -7/Factory Mutant | -7/Storage Resources | -11 -10 -10 -9 -9 -8 -7 -7 ----------- Run | Yrd Mat Min Mat Min Mat Fac Sto Matter Collected 2667 | 150 195 46 304 370 1033 513 56 Remotely . | . . . . . . . . Salvage Created 3728 | . 313 6 526 382 1308 1117 76 Parts 238 | . 23 3 43 18 92 55 4 Haulers Intercepted 11 | . 1 . 4 . 5 1 . Recyclers Shooed . | . . . . . . . . Parts Field Recycled . | . . . . . . . . Retrieved Matter . | . . . . . . . . Parts Self-Destructed . | . . . . . . . . Prevented . | . . . . . . . . Parts Restored . | . . . . . . . . Kills | -11 -10 -10 -9 -9 -8 -7 -7 ------- Run | Yrd Mat Min Mat Min Mat Fac Sto Combat Hostiles Destroyed 83 | . 8 . 9 19 27 18 2 Guns 76 | . 8 . 9 19 25 15 . Cannons 2 | . . . . . . . 2 AOE 5 | . . . . . 2 3 . Classes Destroyed 14 | . 4 1 1 1 4 3 . Worker 3 | . . . . . 2 1 . Builder 4 | . . . . . 3 1 . Tunneler 1 | . . 1 . . . . . Hauler 11 | . 1 . 4 . 5 1 . Recycler 3 | . . . . . . 3 . Operator 2 | . 1 . 1 . . . . Watcher 1 | . . . . . . 1 . Swarmer 23 | . 3 . 3 3 7 7 . Grunt 30 | . 5 . 3 6 10 6 . Sentry 16 | . . . 3 . 7 4 2 Hunter 2 | . . . . . 2 . . Programmer 1 | . . . . . . 1 . Heavy 1 | . . . . . 1 . . Assembled 10 | . . . . 10 . . . Best Kill Streak 10 | . 2 1 4 10 5 6 2 Combat Bots Only 10 | . 2 . 3 10 5 5 2 Max Kills in Single Turn 4 | . 1 1 1 2 2 4 1 Gunslinging 1 | . . . . 1 1 . . Exploded 2 | . . . . . 1 2 . Melee . | . . . . . . . . Uniques/NPCs Destroyed . | . . . . . . . . Combat | -11 -10 -10 -9 -9 -8 -7 -7 -------- Run | Yrd Mat Min Mat Min Mat Fac Sto Hostile Shots Fired 644 | . 18 . 13 49 167 304 93 Missed 235 | . 4 . 5 10 44 131 41 Hits 409 | . 14 . 8 39 123 173 52 Melee 6 | . . . . 6 . . . Projectile 403 | . 14 . 8 33 123 173 52 Critical Strikes 9 | . . . . . 7 2 . Damage Taken 5040 | . 138 . 147 562 1988 1805 400 Core 1129 | . 17 . 14 89 299 517 193 Absorbed by Shields 153 | . . . . . . 153 . Core Remaining (%) 78 | 100 . 93 . 74 45 . . Volleys Fired 206 | . 17 . 17 30 75 55 12 Largest 3 | . 2 . 3 3 3 3 1 Hottest 114 | . 60 . 73 69 114 106 40 Shots Fired 522 | . 34 . 51 90 201 134 12 Gun 492 | . 34 . 51 90 188 129 . Cannon 12 | . . . . . . . 12 Launcher 18 | . . . . . 13 5 . Special . | . . . . . . . . Kinetic 457 | . 19 . 51 90 181 104 12 Thermal 7 | . . . . . 7 . . Explosive 18 | . . . . . 13 5 . Electromagnetic 40 | . 15 . . . . 25 . Robot Hit Streak 21 | . 6 . 9 10 21 12 18 Robot Miss Streak 4 | . 2 . 3 2 4 3 1 Penetration Max 1 | . . . . . 1 1 . Secondary Targets 17 | . . . . 9 6 2 . Max Gunslinging Chain 1 | . . . . 1 1 1 . Shots Hit Robots 341 | . 17 . 24 60 129 101 10 Core Hits 182 | . 13 1 14 26 74 50 4 Critical Kills 1 | . . . . 1 . . . Critical Parts Destroyed 1 | . . . . . 1 . . Critical Strikes 3 | . . . . 1 1 . 1 Destroy 2 | . . . . 1 1 . . Blast 1 | . . . . . . . 1 Melee Attacks . | . . . . . . . . Impact . | . . . . . . . . Slashing . | . . . . . . . . Piercing . | . . . . . . . . Sneak Attacks . | . . . . . . . . Combat Hostiles . | . . . . . . . . Follow-up Attacks . | . . . . . . . . Damage Inflicted 6656 | . 267 20 424 970 2496 2179 300 Guns 5322 | . 261 . 424 968 2046 1623 . Cannons 300 | . . . . . . . 300 Explosions 990 | . . . . . 439 551 . Melee . | . . . . . . . . Ramming 44 | . 6 20 . 2 11 5 . Kinetic 5284 | . 166 . 424 968 1986 1440 300 Thermal 60 | . . . . . 60 . . Explosive 990 | . . . . . 439 551 . Electromagnetic 278 | . 95 . . . . 183 . Impact . | . . . . . . . . Slashing . | . . . . . . . . Piercing . | . . . . . . . . Highest Corruption 1 | . . . . . 1 . . Average Corruption 1 | . . . . . 1 . . Corruption Purged . | . . . . . . . . Corruption Blocked . | . . . . . . . . Effects 18 | . . . . . 18 . . Message Errors 3 | . . . . . 3 . . Matter Fused 3 | . . . . . 3 . . Heat Flow Errors 1 | . . . . . 1 . . Energy Discharges 2 | . . . . . 2 . . Data Loss (minor) 4 | . . . . . 4 . . Data Loss (major) 1 | . . . . . 1 . . Misfires 2 | . . . . . 2 . . Weapon Failures 2 | . . . . . 2 . . Overload Shots . | . . . . . . . . Overflow Damage 40 | . . . . . . 40 . Projectiles . | . . . . . . . . Explosions 40 | . . . . . . 40 . Melee . | . . . . . . . . Knockbacks . | . . . . . . . . Impact . | . . . . . . . . Kinetic . | . . . . . . . . Secondary . | . . . . . . . . Self-Inflicted Damage 187 | . . . . . . 187 . Shots 3 | . . . . . . 3 . Rammed 6 | . 1 4 . 1 . . . Targets Rammed 12 | . 1 5 . 1 2 3 . Kicked 4 | . . . . . 1 3 . Crushed 2 | . . 1 . . 1 . . Highest Temperature 210 | . 30 . 56 103 210 187 16 Average Temperature 37 | . 13 . 21 44 32 48 7 Received Heat Transfer 1290 | . 60 . 24 42 693 351 120 Siege Activations . | . . . . . . . . Martial Activations . | . . . . . . . . Shielding Activations . | . . . . . . . . Robots Disrupted . | . . . . . . . . Combat Hostiles . | . . . . . . . . Robots Corrupted . | . . . . . . . . Combat Hostiles . | . . . . . . . . Parts Fried . | . . . . . . . . Impact Corruptions . | . . . . . . . . Robots Melted . | . . . . . . . . Combat Hostiles . | . . . . . . . . Parts Melted 1 | . . . 1 . . . . Heat Transferred 111 | . . . . . 111 . . Parts Sabotaged . | . . . . . . . . Parts Stolen . | . . . . . . . . Parts Stripped . | . . . . . . . . Power Chain Reactions . | . . . . . . . . Alert | -11 -10 -10 -9 -9 -8 -7 -7 ------- Run | Yrd Mat Min Mat Min Mat Fac Sto Maximum Alert Level 1 | . . . 1 . 1 1 . Low Security (%) 71 | 100 100 100 53 100 18 96 100 Level 1 28 | . . . 46 . 81 3 . Level 2 . | . . . . . . . . Level 3 . | . . . . . . . . Level 4 . | . . . . . . . . Level 5 . | . . . . . . . . High Security . | . . . . . . . . Max Security . | . . . . . . . . Peak Influence 369 | . 86 5 369 122 358 254 130 Initial 136 | . . . . 122 1 136 104 Average 116 | . 18 . 196 39 243 93 101 Influence Increases 2889 | . 240 5 774 210 972 592 96 Destroy 0b10 Robot/C 1700 | . 160 . 420 180 540 360 40 Destroy 0b10 Robot/NC 150 | . 10 5 50 . 50 35 . Destroy Leader 414 | . 32 . 108 30 150 74 20 Allied During Kill 101 | . . . 101 . . . . Successful Hack 90 | . 23 . 19 . 43 . 5 Disable Machine 225 | . . . 60 . 120 30 15 Destroy Structure 59 | . . . 1 . 24 33 1 Partial Spotted 15 | . . . . . . . 15 Lose Combat Pursuer 135 | . 15 . 15 . 45 60 . Influence Decreases 2759 | . 240 5 459 521 675 662 197 Entered New Map 488 | . . . . 193 3 165 127 Time Decay 1889 | . 240 5 399 306 542 347 50 Lost Part 322 | . . . . 22 130 150 20 Lost Ally 60 | . . . 60 . . . . Squads Dispatched 15 | . 5 . 3 . 3 3 1 Investigation 5 | . 3 . 1 . . . 1 Extermination 1 | . . . . . . 1 . Reinforcement 7 | . 2 . 2 . 3 . . Assault . | . . . . . . . . Garrison 2 | . . . . . . 2 . Intercept . | . . . . . . . . Searches Triggered . | . . . . . . . . Construction Impeded 1 | . . . . . 1 . . Haulers Reinforced . | . . . . . . . . Active Scanning Responses . | . . . . . . . . Cargo Convoy Interrupts 1 | . . . . . . 1 . Stealth | -11 -10 -10 -9 -9 -8 -7 -7 --------- Run | Yrd Mat Min Mat Min Mat Fac Sto Distress Signals 17 | . 5 . 2 . 9 1 . Communications Jammed . | . . . . . . . . Distress Signals . | . . . . . . . . Times Spotted 158 | . 17 . 26 19 46 47 3 Peak Tracking Total 14 | . 3 . 5 6 9 14 2 Tactical Retreats 7 | . 1 . 1 . 2 3 . Traps | -11 -10 -10 -9 -9 -8 -7 -7 ------- Run | Yrd Mat Min Mat Min Mat Fac Sto Traps Triggered 5 | . 2 . . . 1 1 1 Indirectly . | . . . . . . . . Trap Hack Attempts . | . . . . . . . . Triggered . | . . . . . . . . Disarmed . | . . . . . . . . Reprogrammed . | . . . . . . . . Reused . | . . . . . . . . Traps Extracted . | . . . . . . . . Installed . | . . . . . . . . Triggered . | . . . . . . . . Machines | -11 -10 -10 -9 -9 -8 -7 -7 ---------- Run | Yrd Mat Min Mat Min Mat Fac Sto Machines Disabled 15 | . . . 4 . 8 2 1 Max in Single Turn 1 | . . . 1 . 1 1 1 Garrison Access 1 | . . . . . 1 . . Machines Repaired . | . . . . . . . . Machines Dismantled 1 | . . . . . . . 1 Machines Sabotaged . | . . . . . . . . Overloaded Fab Kills . | . . . . . . . . Hacking | -11 -10 -10 -9 -9 -8 -7 -7 --------- Run | Yrd Mat Min Mat Min Mat Fac Sto Machines Accessed 32 | . 6 . 8 . 12 4 2 Terminals 26 | . 6 . 7 . 10 1 2 Fabricators 1 | . . . . . . 1 . Repair Stations . | . . . . . . . . Recycling Units . | . . . . . . . . Scanalyzers 3 | . . . 1 . 1 1 . Garrison Access 2 | . . . . . 1 1 . Total Hacks 78 | . 18 . 22 . 28 7 3 Successful 38 | . 10 . 10 . 15 2 1 Failed 37 | . 8 . 11 . 12 4 2 Catastrophic 2 | . . . 1 . . 1 . Database Lockouts 3 | . . . 1 . 1 1 . Manual 64 | . 19 . 14 . 26 2 3 Terminals 67 | . 18 . 19 . 26 1 3 Fabricators 1 | . . . . . . 1 . Repair Stations . | . . . . . . . . Recycling Units . | . . . . . . . . Scanalyzers 7 | . . . 3 . 1 3 . Garrison Access 3 | . . . . . 1 2 . Terminal Hacks 16 | . 6 . 5 . 5 . . Record 1 | . . . 1 . . . . Part Schematic 1 | . 1 . . . . . . Robot Analysis 4 | . 3 . . . 1 . . Prototype ID Bank 1 | . . . 1 . . . . Terminal Index 3 | . 1 . 1 . 1 . . Recall Reinforcements 1 | . . . . . 1 . . Hauler Manifests 2 | . . . 1 . 1 . . Registered Components 3 | . 1 . 1 . 1 . . Fabricator Hacks . | . . . . . . . . Repair Station Hacks . | . . . . . . . . Recycling Unit Hacks . | . . . . . . . . Scanalyzer 4 | . . . 2 . . 2 . Retrieve Study 4 | . . . 2 . . 2 . Garrison Access Hacks 1 | . . . . . 1 . . Seal Access 1 | . . . . . 1 . . Unauthorized Hacks 17 | . 4 . 3 . 9 . 1 Terminals 17 | . 4 . 3 . 9 . 1 Track 1 | . . . 1 . . . . Botnet 14 | . 4 . 1 . 8 . 1 Operators 2 | . . . 1 . 1 . . Fabricators . | . . . . . . . . Repair Stations . | . . . . . . . . Recycling Units . | . . . . . . . . Scanalyzers . | . . . . . . . . Garrison Access . | . . . . . . . . Data Cores Recovered . | . . . . . . . . Used . | . . . . . . . . Hacking Detections 25 | . 5 . 6 . 9 3 2 Full Trace Events 1 | . . . 1 . . . . Feedback Events . | . . . . . . . . Feedback Blocked . | . . . . . . . . Robot Schematics Acquired . | . . . . . . . . Robots Built . | . . . . . . . . Authchips . | . . . . . . . . Time . | . . . . . . . . Total Robot Build Rating . | . . . . . . . . Part Schematics Acquired 1 | . 1 . . . . . . Parts Built . | . . . . . . . . Authchips . | . . . . . . . . Time . | . . . . . . . . Total Part Build Rating . | . . . . . . . . Part Studies Acquired 4 | . . . 2 . . 2 . Parts Repaired . | . . . . . . . . Time . | . . . . . . . . Parts Recycled . | . . . . . . . . Recycled Matter . | . . . . . . . . Retrieved Matter . | . . . . . . . . Retrieved Components . | . . . . . . . . Parts Scanalyzed . | . . . . . . . . Part Schematics Acquired . | . . . . . . . . Parts Damaged . | . . . . . . . . Bothacking | -11 -10 -10 -9 -9 -8 -7 -7 ------------ Run | Yrd Mat Min Mat Min Mat Fac Sto Used RIF Installer . | . . . . . . . . Robots Hacked . | . . . . . . . . Non-combat . | . . . . . . . . Combat . | . . . . . . . . Robot Hacks Applied . | . . . . . . . . Relay Couplers Released . | . . . . . . . . Fabnet Peak Effective % . | . . . . . . . . Robots Rewired . | . . . . . . . . Allies Hacked . | . . . . . . . . Hacks Repelled . | . . . . . . . . Allies | -11 -10 -10 -9 -9 -8 -7 -7 -------- Run | Yrd Mat Min Mat Min Mat Fac Sto Total Allies 5 | . . 5 . . . . . Largest Group 5 | . . 5 5 . . . . Highest-Rated Group 86 | . . 86 86 . . . . Highest-Rated Ally 31 | . . 31 31 . . . . Total Orders . | . . . . . . . . Ally Attacks 79 | . . . 79 . . . . Total Damage 957 | . . . 957 . . . . Kills 18 | . . . 18 . . . . Allies Corrupted . | . . . . . . . . Allies Melted . | . . . . . . . . Intel | -11 -10 -10 -9 -9 -8 -7 -7 ------- Run | Yrd Mat Min Mat Min Mat Fac Sto Active Infowar (turns) 1565 | . . . 1193 372 . . . Sensors 1565 | . . . 1193 372 . . . Robot Analysis Total 4 | . 3 . . . 1 . . Derelict Logs Recovered 3 | . . 2 . 1 . . . Drone Launches . | . . . . . . . . Drone Recoveries . | . . . . . . . . Exploration | -11 -10 -10 -9 -9 -8 -7 -7 ------------- Run | Yrd Mat Min Mat Min Mat Fac Sto Turns Passed 6935 | 71 1073 830 1205 976 1689 972 119 Spaces Moved 4034 | 41 620 501 681 536 896 652 107 Core 153 | 7 . . . . 8 35 103 Treads 2496 | 34 620 501 681 536 120 . 4 Legs 1385 | . . . . . 768 617 . Wheels . | . . . . . . . . Hover . | . . . . . . . . Flight . | . . . . . . . . Fastest Speed 50 | 50 160 160 160 160 120 50 50 Average Speed 148 | 141 160 160 160 161 152 116 56 Slowest Speed 600 | 160 160 160 160 240 600 190 160 Overloaded Moves . | . . . . . . . . Propulsion Burnouts . | . . . . . . . . Robots Hopped . | . . . . . . . . Potential Cave-ins . | . . . . . . . . Cave-ins Triggered . | . . . . . . . . Exploration Rate (%) 60 | 4 94 98 60 99 82 22 25 Regions Visited 7 Branch Regions 3 Pre-discovered Areas 3 | . . 3 . . . . . Known Exits Taken 1 | . . . . . . 1 . Unknown Exits Taken 6 | 1 1 1 1 1 1 . . Scrap Searched 3 | . . 1 . 2 . . . Spaces Dug . | . . . . . . . . Terrain Destroyed 65 | . . . . . 21 43 1 Melee . | . . . . . . . . Projectile 2 | . . . . . 1 . 1 AOE 63 | . . . . . 20 43 . Terrain Rammed . | . . . . . . . . Walls Destroyed . | . . . . . . . . Machines Disabled . | . . . . . . . . Actions | -11 -10 -10 -9 -9 -8 -7 -7 --------- Run | Yrd Mat Min Mat Min Mat Fac Sto Total 4614 | 54 668 527 768 599 1093 767 138 Wait 169 | . 7 21 41 28 50 20 2 Move 4027 | 40 619 500 680 535 895 651 107 Hop . | . . . . . . . . Pick Up 78 | 8 13 1 14 2 25 13 2 Fast Attach . | . . . . . . . . Attach 56 | 6 5 . 4 3 19 12 7 Detach 1 | . . . . . . 1 . Swap 27 | . 2 . 6 . 14 5 . Drop 30 | . 4 . 6 . 13 7 . Fire 206 | . 17 . 17 30 75 55 12 Melee . | . . . . . . . . Ram . | . . . . . . . . Kick 4 | . . . . . 1 3 . Crush 8 | . 1 5 . 1 1 . . Escape Stasis . | . . . . . . . . Rewire . | . . . . . . . . Trap . | . . . . . . . . Miscellaneous 8 | . . . . . . . 8 Route ------- -11/Scrapyard -10/Materials (discovered 4 exits: *Mat x3 / [*Min]) -10/Mines (discovered 3 exits: *Mat x2 / [*Exi]) -9/Materials (discovered 3 exits: *Mat / [*Min x2]) -9/Mines (discovered 2 exits: *Mat x2) -8/Materials (discovered 3 exits: *Fac x3) -7/Factory (discovered 2 exits: *Sto / [*Low]) -7/Storage History --------- Turn | Location | Event 20 | -11/Scrapyard | Discovered new exit (range 15) 72 | -11/Scrapyard | Entered Materials 73 | -10/Materials | Met a group of wandering Federalists 318 | -10/Materials | Build established: Mutant 476 | -10/Materials | Discovered new exit (range 9) 745 | -10/Materials | Discovered new exit (range 13) 819 | -10/Materials | Discovered new exit (range 6) 1105 | -10/Materials | Discovered new exit (range 13) 1145 | -10/Materials | Entered Mines 1173 | -10/Mines | Learned location of Zion (-6) 1230 | -10/Mines | Learned location of Storage (-7) 1355 | -10/Mines | Found a damaged Exp. Sensor Array with a note attached 1358 | -10/Mines | Found Prototype Device 1433 | -10/Mines | Assisted by bots powering up and referring to "LRC-V3" 1527 | -10/Mines | Discovered new exit (range 5) 1551 | -10/Mines | Discovered new exit (range 7) 1836 | -10/Mines | Deemed a non-threat by the Exiles lab entrance 1838 | -10/Mines | Discovered new exit (range 5) 1975 | -10/Mines | Entered Materials 1975 | -9/Materials | Accompanied by 5 allies 1975 | -9/Materials | Evolved 2 slots: Utility x1, Weapon x1 1980 | -9/Materials | Led the pair of lost Derelicts to an unsafe place 1987 | -9/Materials | Identified Exp. Sensor Array 1988 | -9/Materials | Central database locked down 2124 | -9/Materials | Discovered new exit (range 15) 2406 | -9/Materials | Build established: Skirmisher 2472 | -9/Materials | Discovered new exit (range 15) 2848 | -9/Materials | Discovered new exit (range 13) 3180 | -9/Materials | Entered Mines 3383 | -9/Mines | Received a Rocket Launcher from a helpful Derelict 3478 | -9/Mines | Assembled infested the area 3590 | -9/Mines | Discovered new exit (range 10) 3591 | -9/Mines | Destroyed 10 combat bots 3794 | -9/Mines | Discovered new exit (range 16) 3849 | -9/Mines | Build established: Gunner 4156 | -9/Mines | Entered Materials 4156 | -8/Materials | Evolved 2 slots: Power x1, Propulsion x1 4422 | -8/Materials | Lost 3 parts (1p2w) 4623 | -8/Materials | Discovered new exit (range 11) 5021 | -8/Materials | Build established: Scavenger-Gunner 5357 | -8/Materials | Core integrity fell below 50% 5378 | -8/Materials | Lost 7 parts (1p2n4w) 5489 | -8/Materials | Discovered new exit (range 5) 5821 | -8/Materials | Central database locked down 5829 | -8/Materials | Discovered new exit (range 8) 5845 | -8/Materials | Entered Factory 5845 | -7/Factory | Evolved 2 slots: Propulsion x1, Utility x1 5846 | -7/Factory | Identified exit to Storage 6067 | -7/Factory | Central database locked down 6292 | -7/Factory | Discovered new exit (range 12) 6353 | -7/Factory | Lost 3 parts (1n1u1w) 6689 | -7/Factory | Garrison activated, responded to threat 6799 | -7/Factory | Cargo convoy interrupted 6800 | -7/Factory | Released all parts (4) 6803 | -7/Factory | Core integrity fell below 50% 6817 | -7/Factory | Entered Storage 6828 | -7/Storage | Lost 11 parts (1p3n1u6w) 6896 | -7/Storage | Core integrity fell below 20% 6936 | -7/Storage | Destroyed by Y-54 Guardian with Gatling Laser Last Messages --------------- 06886_ Sealed Heavy Doors dismantled. 06890_ Acquired Prototype Device. 06891_ Identified Gravity Neutralizer. 06898_ Plasma Cutter destroyed. 06911_ U-05 Engineer destroyed. 06914_ Recoil Stabilizer destroyed. 06914_ Y-54 Guardian Lgt. Treads blasted off. 06914_ Y-54 Guardian destroyed. 06921_ Acquired 16 matter. 06923_ K-01 Serf collects debris. 06923_ Acquired Lgt. Treads. 06924_ K-01 Serf collects debris. 06927_ U-05 Engineer builds a Wall. 06928_ K-01 Serf collects debris. 06931_ Y-54 Guardian destroyed. 06931_ K-01 Serf collects debris. 06934_ Acquired 19 matter. 06934_ K-01 Serf collects debris. 06936_ Acquired 21 matter. 06936_ K-01 Serf collects debris. Map ----- +----------------------------------------------------+ | ?????????????????????????????????????????????????? | | ?????????????????????????????????????????????????? | | ?????????????????????????????????????????????????? | | ?????????????????????????????????????????????????? | | ?????????????????????????????????????????????????? | | ?????????????????????????????????????????????????? | | ?????????????????????????????????????????????????? | | ?????????????????????????????????????????????????? | | ?????????????????????????????????????????????????? | | ?????????????????????????????????????????????????? | | ?????????????????????????????????????????????????? | | ?????????????????????????????????????????????????? | | ?????????????????????????????????????????????????? | | ?????????????????????????????????????????????????? | | ?????????????????????????????????????????????????? | | ?????????????????????????????????????????????????? | | ?????????????????????????????????????????????????? | | ?????????????????????????????????????????????????? | | ????????##########???????????????????????????????? | | ?????# ? # ^ #?????????????????#?????????????? | | ?????# # #???????????????? #?????????????? | | ?????# """ # #???????????????# ####+#????????? | | ?????# """ # ################ #????????? | | ?????# """ # # =*ur +???????? | | ????"" + # *!% #####+###### #????????? | | ????Y """ # # kkk@####T #????????????????? | | ????"" """ # # !! #??## #????????????????? | | ????## """ + /Y #???# #????????????????? | | ?????# # # #???###????????????????? | | ?????# # # #??????????????????????? | | ?????####### # # #??????????????????????? | | ???????????### # #??????????????????????? | | ???????????? # ##########??????????????????????? | | ???????????? # #???????????????????????????????? | | ?????????????+ #???????????????????????????????? | | ?????????????# #???????????????????????????????? | | ?????????????# #???????????????????????????????? | | ?????????????# #???????????????????????????????? | | ???#+#??????## ##??????????????????????????????? | | ??## ######## #??????????????????????????????? | | ??# T" #??????????????????????????????? | | ### " #??????????????????????????????? | | #??????????????????????????????? | | ####+######## #??????????????????????????????? | | #??###+###??????????????????????????????? | | """ ""??????? ????????????????????????????????? | | """ ""???????"" ????????????????????????????????? | | """ ""??????""" ???????????????????????????????? | | #???""" ???????????????????????????????? | | ! #?? ??????????????????????????????? | +----------------------------------------------------+ Best States ------------- Heat Dissipation 48 Energy Generation 23 Energy Capacity 250 Matter Stores 300 Matter Capacity 300 Sight Range 16 Robot Scan Range 20 Terrain Scan Density 10 Evasion (%) 55 Targeting Accuracy 8 Launcher Accuracy 20 Recoil Reduction 3 Offensive Hacking 10 Item Schematics ----------------- Hcp. Storage Unit | -10/Materials | Hacked Robot Schematics ------------------ None Fabricated ------------ Nothing Repaired ---------- Nothing Studied --------- Autogun | -9/Materials | Hacked Grenade Launcher | -9/Materials | Hacked Adv. Assault Cannon | -7/Factory | Hacked Minigun | -7/Factory | Hacked Alien Tech Used ----------------- None Achievements -------------- None Challenges ------------ None Game ------ Seed ProcessingHackingDissipator Manual? 0 Play Time 00:37:30 Cumulative 65.0 hours Start 2025.11.30 @ 19:06:46 End 2025.11.30 @ 19:43:18 Sessions 1 Manual Loads 0 Difficulty Rogue Special Mode None Game No. 165 Rogue 165 Adventurer 0 Explorer 0 Win Type - Total 0 Types 0/0/0/0/0/0/0/0/0/0 Lore% 33 Gallery% 35 Achievement% 28 Wizard Run 0 Options --------- Layout 1 ASCII 0 Keyboard 0 Movement Numpad Keybinds 0 Fullscreen 2 Font 24/Smallcaps Map View 50x35 Zoom Use 0% Tactical HUD 1 Map Filters NONE Filters NONE Steam 1 RUN: cb9cc173-37d2-477c-8d57-8dff35d166b3